fUSD/lending_fUSD_20240814
["ID","MTS","AMOUNT","RATE_DAILY","PERIOD"]
[334833252,1723606243871,-500.0,0.00013698,2]
[334833253,1723606243885,-646.94,0.00013698,2]
[334833254,1723606243895,-500.0,0.00013698,2]
[334833255,1723606243905,-500.0,0.00013698,2]
[334833256,1723606243915,-500.0,0.00013698,2]
[334833257,1723606243925,-500.0,0.00013698,2]
[334833258,1723606243934,-805.15,0.00013698,2]
[334833259,1723606243944,-2687.23,0.00013698,2]
[334833260,1723606243954,-500.0,0.00013698,2]
[334833261,1723606243965,-500.0,0.00013698,2]
[334833262,1723606243975,-500.0,0.00013698,2]
[334833263,1723606243985,-1026.7,0.00013698,2]
[334833264,1723606243994,-500.0,0.00013698,2]
[334833265,1723606244004,-500.0,0.00013698,2]
[334833266,1723606244168,-2055.39,0.00013698,2]
[334833267,1723606244180,-2059.88,0.00013698,2]
[334833268,1723606244191,-500.0,0.00013698,2]
[334833269,1723606244202,-500.0,0.00013698,2]
[334833270,1723606244212,-500.0,0.00013698,2]
[334833271,1723606244222,-500.0,0.00013698,2]
[334833272,1723606244232,-500.0,0.00013698,2]
[334833273,1723606244242,-1751.88,0.00013698,2]
[334833274,1723606244252,-502.07074732,0.00013698,2]
[334833275,1723606244262,-500.0,0.00013698,2]
[334833276,1723606244272,-500.0,0.00013698,2]
[334833277,1723606244282,-545.63,0.00013698,2]
[334833278,1723606244292,-733.22,0.00013698,2]
[334833279,1723606244303,-500.0,0.00013698,2]
[334833280,1723606244314,-589.61,0.00013698,2]
[334833281,1723606244324,-500.0,0.00013698,2]
[334833282,1723606244334,-500.0,0.00013698,2]
[334833283,1723606244343,-1476.63,0.00013698,2]
[334833284,1723606244353,-500.0,0.00013698,2]
[334833285,1723606244362,-500.0,0.00013698,2]
[334833286,1723606244372,-2316.7,0.00013698,2]
[334833287,1723606244382,-500.0,0.00013698,2]
[334833288,1723606244392,-500.0,0.00013698,2]
[334833289,1723606244402,-1352.79,0.00013698,2]
[334833290,1723606244412,-500.0,0.00013698,2]
[334833291,1723606244422,-975.54,0.00013698,2]
[334833292,1723606244431,-500.0,0.00013698,2]
[334833293,1723606244441,-500.0,0.00013698,2]
[334833294,1723606244451,-683.26,0.00013698,2]
[334833295,1723606244460,-500.0,0.00013698,2]
[334833296,1723606244470,-500.0,0.00013698,2]
[334833297,1723606244480,-1857.42,0.00013698,2]
[334833298,1723606244490,-1064.71,0.00013698,2]
[334833299,1723606244499,-500.0,0.00013698,2]
[334833300,1723606244509,-500.0,0.00013698,2]
[334833301,1723606244518,-500.0,0.00013698,2]
[334833302,1723606244528,-2140.46,0.00013698,2]
[334833303,1723606244537,-500.0,0.00013698,2]
[334833304,1723606244546,-500.0,0.00013698,2]
[334833305,1723606244556,-2002.6,0.00013698,2]
[334833306,1723606244565,-500.0,0.00013698,2]
[334833307,1723606244576,-994.38,0.00013698,2]
[334833308,1723606244585,-1214.76,0.00013698,2]
[334833309,1723606244594,-500.0,0.00013698,2]
[334833310,1723606244604,-500.0,0.00013698,2]
[334833311,1723606244613,-500.0,0.00013698,2]
[334833312,1723606244623,-687.99,0.00013698,2]
[334833313,1723606244632,-500.0,0.00013698,2]
[334833314,1723606244643,-875.38,0.00013698,2]
[334833315,1723606244652,-368.47305301,0.00013698,2]
[334833316,1723606244662,-2256.94,0.00013698,2]
[334833317,1723606244672,-500.0,0.00013698,2]
[334833318,1723606244681,-500.0,0.00013698,2]
[334833319,1723606244691,-542.84,0.00013698,2]
[334833320,1723606244701,-500.0,0.00013698,2]
[334833321,1723606244711,-1186.97,0.00013698,2]
[334833322,1723606244721,-500.0,0.00013698,2]
[334833323,1723606244733,-500.0,0.00013698,2]
[334833324,1723606244746,-2396.58,0.00013698,2]
[334833325,1723606244756,-500.0,0.00013698,2]
[334833326,1723606244766,-500.0,0.00013698,2]
[334833327,1723606244776,-500.0,0.00013698,2]
[334833328,1723606244786,-500.0,0.00013698,2]
[334833329,1723606244796,-500.0,0.00013698,2]
[334833330,1723606244806,-500.0,0.00013698,2]
[334833331,1723606244815,-1901.88,0.00013698,2]
[334833332,1723606244827,-500.0,0.00013698,2]
[334833333,1723606244840,-926.19,0.00013698,2]
[334833334,1723606244850,-1384.68,0.00013698,2]
[334833335,1723606244860,-745.53,0.00013698,2]
[334833336,1723606244870,-614.08,0.00013698,2]
[334833337,1723606244880,-500.0,0.00013698,2]
[334833338,1723606244890,-500.0,0.00013698,2]
[334833339,1723606244900,-500.0,0.00013698,2]
[334833340,1723606244909,-500.0,0.00013698,2]
[334833341,1723606244919,-699.17,0.00013698,2]
[334833342,1723606244928,-610.28,0.00013698,2]
[334833343,1723606244938,-500.0,0.00013698,2]
[334833344,1723606244948,-500.0,0.00013698,2]
[334833345,1723606244958,-500.0,0.00013698,2]
[334833346,1723606244968,-770.51,0.00013698,2]
[334833347,1723606244978,-504.58335425,0.00013698,2]
[334833348,1723606244988,-500.0,0.00013698,2]
[334833349,1723606244997,-1153.37,0.00013698,2]
[334833350,1723606245008,-694.46,0.00013698,2]
[334833351,1723606245017,-1462.38,0.00013698,2]
[334833352,1723606245027,-500.0,0.00013698,2]
[334833353,1723606245037,-1122.17,0.00013698,2]
[334833354,1723606245047,-500.0,0.00013698,2]
[334833355,1723606245057,-1156.13,0.00013698,2]
[334833356,1723606245067,-500.0,0.00013698,2]
[334833357,1723606245081,-500.0,0.00013698,2]
[334833358,1723606245091,-500.0,0.00013698,2]
[334833359,1723606245101,-498.55349867,0.00013698,2]
[334833360,1723606245111,-928.32,0.00013698,2]
[334833361,1723606245121,-500.0,0.00013698,2]
[334833362,1723606245131,-500.36004259,0.00013698,2]
[334833363,1723606245142,-515.31,0.00013698,2]
[334833364,1723606245153,-1322.93,0.00013698,2]
[334833365,1723606245163,-1786.82,0.00013698,2]
[334833366,1723606245174,-500.0,0.00013698,2]
[334833367,1723606245183,-500.0,0.00013698,2]
[334833368,1723606245193,-1783.67,0.00013698,2]
[334833369,1723606245203,-500.0,0.00013698,2]
[334833370,1723606245213,-500.0,0.00013698,2]
[334833371,1723606245223,-5125.24,0.00013698,2]
[334833372,1723606245233,-924.38,0.00013698,2]
[334833373,1723606245243,-501.19741964,0.00013698,2]
[334833374,1723606245252,-500.0,0.00013698,2]
[334833375,1723606245262,-539.32,0.00013698,2]
[334833376,1723606245271,-500.0,0.00013698,2]
[334833377,1723606245281,-2719.36,0.00013698,2]
[334833378,1723606245291,-1170.65,0.00013698,2]
[334833379,1723606245300,-770.29,0.00013698,2]
[334833380,1723606245310,-1497.14,0.00013698,2]
[334833381,1723606245319,-553.66,0.00013698,2]
[334833382,1723606245329,-500.0,0.00013698,2]
[334833383,1723606245338,-16400.66,0.00013698,2]
[334833384,1723606245348,-500.0,0.00013698,2]
[334833385,1723606245357,-564.36,0.00013698,2]
[334833386,1723606245367,-1305.03,0.00013698,2]
[334833387,1723606245377,-500.0,0.00013698,2]
[334833388,1723606245385,-500.0,0.00013698,2]
[334833389,1723606245395,-500.0,0.00013698,2]
[334833390,1723606245404,-5173.19,0.00013698,2]
[334833391,1723606245414,-500.0,0.00013698,2]
[334833392,1723606245424,-500.0,0.00013698,2]
[334833393,1723606245434,-1004.75,0.00013698,2]
[334833394,1723606245443,-500.0,0.00013698,2]
[334833395,1723606245453,-500.0,0.00013698,2]
[334833396,1723606245462,-1530.58,0.00013698,2]
[334833397,1723606245472,-500.0,0.00013698,2]
[334833398,1723606245482,-1256.42,0.00013698,2]
[334833399,1723606245492,-1870.61,0.00013698,2]
[334833400,1723606245502,-500.0,0.00013698,2]
[334833401,1723606245512,-12596.78,0.00013698,2]
[334833402,1723606245523,-842.61,0.00013698,2]
[334833403,1723606245532,-502.24503044,0.00013698,2]
[334833404,1723606245542,-500.0,0.00013698,2]
[334833405,1723606245551,-6083.44,0.00013698,2]
[334833406,1723606245561,-522.13098182,0.00013698,2]
[334833407,1723606245570,-500.0,0.00013698,2]
[334833408,1723606245581,-3359.26,0.00013698,2]
[334833409,1723606245591,-2906.96,0.00013698,2]
[334833410,1723606245600,-1592.04,0.00013698,2]
[334833411,1723606245611,-750.28,0.00013698,2]
[334833412,1723606245620,-500.0,0.00013698,2]
[334833413,1723606245630,-1862.96,0.00013698,2]
[334833414,1723606245640,-1588.9,0.00013698,2]
[334833415,1723606245650,-1891.12,0.00013698,2]
[334833416,1723606245660,-500.0,0.00013698,2]
[334833417,1723606245669,-11429.35,0.00013698,2]
[334833418,1723606245679,-500.0,0.00013698,2]
[334833420,1723606245689,-658.23,0.00013698,2]
[334833422,1723606245698,-2138.35,0.00013698,2]
[334833424,1723606245707,-2102.25,0.00013698,2]
[334833425,1723606245717,-1413.63,0.00013698,2]
[334833426,1723606245726,-1399.72,0.00013698,2]
[334833427,1723606245736,-500.0,0.00013698,2]
[334833428,1723606245747,-500.0,0.00013698,2]
[334833429,1723606245756,-500.0,0.00013698,2]
[334833430,1723606245766,-500.0,0.00013698,2]
[334833431,1723606245775,-636.18,0.00013698,2]
[334833432,1723606245785,-5737.21,0.00013698,2]
[334833433,1723606245794,-1253.23,0.00013698,2]
[334833434,1723606245803,-2124.1,0.00013698,2]
[334833435,1723606245813,-651.66,0.00013698,2]
[334833438,1723606245823,-2351.24,0.00013698,2]
[334833440,1723606245833,-817.32,0.00013698,2]
[334833441,1723606245843,-2185.53,0.00013698,2]
[334833442,1723606245852,-500.0,0.00013698,2]
[334833443,1723606245861,-1352.61,0.00013698,2]
[334833444,1723606245870,-500.0,0.00013698,2]
[334833445,1723606245879,-684.57,0.00013698,2]
[334833446,1723606245889,-778.49,0.00013698,2]
[334833447,1723606245898,-500.0,0.00013698,2]
[334833448,1723606245908,-27654.11,0.00013698,2]
[334833449,1723606245918,-626.30373597,0.00013698,2]
[334833450,1723606245928,-500.0,0.00013698,2]
[334833451,1723606245938,-1814.01,0.00013698,2]
[334833452,1723606245948,-10314.84,0.00013698,2]
[334833453,1723606245957,-590.29,0.00013698,2]
[334833454,1723606245967,-500.0,0.00013698,2]
[334833455,1723606245976,-1693.11,0.00013698,2]
[334833456,1723606245985,-500.0,0.00013698,2]
[334833457,1723606245995,-1593.87,0.00013698,2]
[334833458,1723606246004,-549.48,0.00013698,2]
[334833459,1723606246014,-500.0,0.00013698,2]
[334833460,1723606246024,-14230.09,0.00013698,2]
[334833461,1723606246034,-500.0,0.00013698,2]
[334833462,1723606246043,-2050.16,0.00013698,2]
[334833463,1723606246053,-993.77,0.00013698,2]
[334833464,1723606246062,-500.0,0.00013698,2]
[334833465,1723606246072,-9937.73,0.00013698,2]
[334833466,1723606246082,-3696.5,0.00013698,2]
[334833467,1723606246093,-921.41,0.00013698,2]
[334833468,1723606246102,-500.0,0.00013698,2]
[334833469,1723606246112,-526.14062211,0.00013698,2]
[334833470,1723606246122,-1659.6,0.00013698,2]
[334833471,1723606246131,-9757.03,0.00013698,2]
[334833472,1723606246141,-500.0,0.00013698,2]
[334833473,1723606246150,-1044.77,0.00013698,2]
[334833474,1723606246159,-583.08280165,0.00013698,2]
[334833475,1723606246168,-500.0,0.00013698,2]
[334833476,1723606246178,-500.0,0.00013698,2]
[334833477,1723606246187,-1562.26,0.00013698,2]
[334833478,1723606246197,-1339.04,0.00013698,2]
[334833479,1723606246206,-576.34783383,0.00013698,2]
[334833480,1723606246215,-500.0,0.00013698,2]
[334833481,1723606246224,-875.35,0.00013698,2]
[334833482,1723606246234,-9774.8,0.00013698,2]
[334833483,1723606246243,-3603.02,0.00013698,2]
[334833484,1723606246252,-500.0,0.00013698,2]
[334833485,1723606246262,-500.0,0.00013698,2]
[334833486,1723606246271,-1150.12,0.00013698,2]
[334833487,1723606246280,-500.0,0.00013698,2]
[334833488,1723606246291,-1064.84,0.00013698,2]
[334833489,1723606246303,-29689.87,0.00013698,2]
[334833490,1723606246315,-1736.37,0.00013698,2]
[334833491,1723606246324,-23067.66,0.00013698,2]
[334833492,1723606246333,-500.0,0.00013698,2]
[334833493,1723606246343,-1500.0,0.00013698,2]
[334833494,1723606246354,-594.87,0.00013698,2]
[334833495,1723606246364,-500.0,0.00013698,2]
[334833496,1723606246373,-5930.72,0.00013698,2]
[334833497,1723606246383,-20601.04,0.00013698,2]
[334833498,1723606246392,-500.0,0.00013698,2]
[334833499,1723606246403,-826.8,0.00013698,2]
[334833500,1723606246412,-953.29,0.00013698,2]
[334833506,1723606246421,-500.0,0.00013698,2]
[334833507,1723606246739,-500.0,0.00013698,2]
[334833508,1723606246750,-500.0,0.00013698,2]
[334833509,1723606246761,-500.0,0.00013698,2]
[334833510,1723606246770,-1096.36,0.00013698,2]
[334833511,1723606246780,-2419.57,0.00013698,2]
[334833512,1723606246790,-500.0,0.00013698,2]
[334833513,1723606246799,-500.0,0.00013698,2]
[334833514,1723606246809,-8563.51,0.00013698,2]
[334833515,1723606246818,-1397.06,0.00013698,2]
[334833516,1723606246829,-1627.93,0.00013698,2]
[334833517,1723606246838,-500.0,0.00013698,2]
[334833518,1723606246849,-1164.95,0.00013698,2]
[334833519,1723606246858,-500.0,0.00013698,2]
[334833520,1723606246867,-500.0,0.00013698,2]
[334833521,1723606246877,-1702.34,0.00013698,2]
[334833522,1723606246886,-500.0,0.00013698,2]
[334833523,1723606246895,-2048.2,0.00013698,2]
[334833524,1723606246905,-851.9,0.00013698,2]
[334833525,1723606246915,-1238.06,0.00013698,2]
[334833526,1723606246925,-500.0,0.00013698,2]
[334833527,1723606246935,-16099.84,0.00013698,2]
[334833528,1723606246944,-628.86,0.00013698,2]
[334833529,1723606246956,-596.77,0.00013698,2]
[334833530,1723606246966,-2777.77,0.00013698,2]
[334833531,1723606246975,-1396.44,0.00013698,2]
[334833532,1723606246984,-1464.0,0.00013698,2]
[334833533,1723606246993,-500.0,0.00013698,2]
[334833534,1723606247003,-1764.6,0.00013698,2]
[334833535,1723606247012,-4171.0,0.00013698,2]
[334833536,1723606247021,-500.0,0.00013698,2]
[334833537,1723606247031,-748.05,0.00013698,2]
[334833538,1723606247041,-1367.2,0.00013698,2]
[334833539,1723606247051,-2379.71,0.00013698,2]
[334833540,1723606247060,-500.0,0.00013698,2]
[334833541,1723606247069,-884.33,0.00013698,2]
[334833542,1723606247078,-1243.89,0.00013698,2]
[334833543,1723606247087,-6336.06,0.00013698,2]
[334833544,1723606247097,-500.0,0.00013698,2]
[334833545,1723606247107,-6816.03,0.00013698,2]
[334833546,1723606247116,-1308.01,0.00013698,2]
[334833547,1723606247125,-2181.16,0.00013698,2]
[334833548,1723606247135,-500.0,0.00013698,2]
[334833549,1723606247145,-2759.13,0.00013698,2]
[334833550,1723606247155,-1071.9,0.00013698,2]
[334833551,1723606247165,-1039.89,0.00013698,2]
[334833552,1723606247175,-1837.41,0.00013698,2]
[334833553,1723606247185,-1232.31,0.00013698,2]
[334833554,1723606247195,-2210.33,0.00013698,2]
[334833555,1723606247205,-530.06,0.00013698,2]
[334833556,1723606247214,-500.0,0.00013698,2]
[334833557,1723606247224,-1400.58,0.00013698,2]
[334833558,1723606247233,-9975.79,0.00013698,2]
[334833559,1723606247242,-1200.24,0.00013698,2]
[334833560,1723606247252,-562.88,0.00013698,2]
[334833561,1723606247262,-2699.35,0.00013698,2]
[334833562,1723606247271,-518.22,0.00013698,2]
[334833563,1723606247282,-500.0,0.00013698,2]
[334833564,1723606247292,-8510.16,0.00013698,2]
[334833565,1723606247303,-806.35,0.00013698,2]
[334833566,1723606247312,-1090.4,0.00013698,2]
[334833567,1723606247322,-1785.97,0.00013698,2]
[334833568,1723606247334,-772.04,0.00013698,2]
[334833569,1723606247343,-1077.86,0.00013698,2]
[334833570,1723606247352,-1376.89,0.00013698,2]
[334833571,1723606247362,-1432.27,0.00013698,2]
[334833572,1723606247371,-1419.53,0.00013698,2]
[334833573,1723606247382,-2309.29,0.00013698,2]
[334833574,1723606247391,-4717.91,0.00013698,2]
[334833575,1723606247402,-500.0,0.00013698,2]
[334833576,1723606247411,-3633.76,0.00013698,2]
[334833577,1723606247421,-1027.69,0.00013698,2]
[334833578,1723606247430,-828.94,0.00013698,2]
[334833579,1723606247440,-16630.67,0.00013698,2]
[334833580,1723606247450,-1472.8,0.00013698,2]
[334833581,1723606247460,-2336.71,0.00013698,2]
[334833582,1723606247469,-716.19,0.00013698,2]
[334833583,1723606247479,-1630.08,0.00013698,2]
[334833584,1723606247488,-500.0,0.00013698,2]
[334833585,1723606247498,-1034.77,0.00013698,2]
[334833586,1723606247507,-1495.12,0.00013698,2]
[334833587,1723606247517,-500.0,0.00013698,2]
[334833588,1723606247526,-1585.64,0.00013698,2]
[334833589,1723606247536,-500.0,0.00013698,2]
[334833590,1723606247546,-1477.26,0.00013698,2]
[334833591,1723606247555,-500.0,0.00013698,2]
[334833592,1723606247565,-1409.85,0.00013698,2]
[334833593,1723606247575,-710.12,0.00013698,2]
[334833594,1723606247586,-4316.92,0.00013698,2]
[334833595,1723606247596,-710.12,0.00013698,2]
[334833596,1723606247605,-1414.28,0.00013698,2]
[334833597,1723606247615,-710.12,0.00013698,2]
[334833598,1723606247626,-239.41808353,0.00013698,2]
[334833599,1723606247636,-808.06,0.00013698,2]
[334833600,1723606247647,-500.0,0.00013698,2]
[334833601,1723606247657,-3209.27,0.00013698,2]
[334833602,1723606247669,-500.0,0.00013698,2]
[334833603,1723606247678,-754.12,0.00013698,2]
[334833604,1723606247687,-1167.72,0.00013698,2]
[334833605,1723606247697,-500.0,0.00013698,2]
[334833606,1723606247707,-500.0,0.00013698,2]
[334833607,1723606247716,-3222.79,0.00013698,2]
[334833608,1723606247727,-6375.33,0.00013698,2]
[334833609,1723606247741,-3914.08,0.00013698,2]
[334833610,1723606247752,-500.0,0.00013698,2]
[334833611,1723606247764,-500.0,0.00013698,2]
[334833612,1723606247774,-500.0,0.00013698,2]
[334833613,1723606247783,-4368.17,0.00013698,2]
[334833614,1723606247793,-3464.28,0.00013698,2]
[334833615,1723606247804,-1316.98,0.00013698,2]
[334833616,1723606247815,-500.0,0.00013698,2]
[334833617,1723606247824,-3951.04,0.00013698,2]
[334833618,1723606247835,-500.0,0.00013698,2]
[334833619,1723606247845,-515.72,0.00013698,2]
[334833620,1723606247855,-1503.5,0.00013698,2]
[334833621,1723606247864,-500.0,0.00013698,2]
[334833622,1723606247874,-7597.75,0.00013698,2]
[334833623,1723606247883,-1180.15,0.00013698,2]
[334833624,1723606247893,-500.0,0.00013698,2]
[334833625,1723606247903,-500.0,0.00013698,2]
[334833626,1723606247913,-2371.76,0.00013698,2]
[334833627,1723606247922,-823.66,0.00013698,2]
[334833628,1723606247932,-2626.42,0.00013698,2]
[334833629,1723606247941,-500.0,0.00013698,2]
[334833630,1723606247951,-2213.62,0.00013698,2]
[334833631,1723606247960,-500.0,0.00013698,2]
[334833632,1723606247970,-500.0,0.00013698,2]
[334833633,1723606247980,-500.0,0.00013698,2]
[334833634,1723606247990,-9863.1,0.00013698,2]
[334833635,1723606247999,-3408.68,0.00013698,2]
[334833636,1723606248009,-13054.54,0.00013698,2]
[334833637,1723606248018,-1051.11,0.00013698,2]
[334833638,1723606248028,-2708.69,0.00013698,2]
[334833639,1723606248037,-500.0,0.00013698,2]
[334833640,1723606248047,-531.32,0.00013698,2]
[334833641,1723606248057,-2248.27,0.00013698,2]
[334833642,1723606248066,-500.0,0.00013698,2]
[334833643,1723606248075,-1699.77,0.00013698,2]
[334833644,1723606248086,-4651.28,0.00013698,2]
[334833645,1723606248095,-5188.03,0.00013698,2]
[334833646,1723606248105,-500.0,0.00013698,2]
[334833647,1723606248114,-2317.6,0.00013698,2]
[334833648,1723606248124,-500.0,0.00013698,2]
[334833649,1723606248133,-931.26,0.00013698,2]
[334833650,1723606248143,-500.0,0.00013698,2]
[334833651,1723606248153,-3304.68,0.00013698,2]
[334833652,1723606248162,-500.0,0.00013698,2]
[334833653,1723606248172,-1265.11,0.00013698,2]
[334833654,1723606248181,-614.46,0.00013698,2]
[334833655,1723606248191,-500.0,0.00013698,2]
[334833656,1723606248201,-500.0,0.00013698,2]
[334833657,1723606248211,-2028.9,0.00013698,2]
[334833658,1723606248220,-3647.07,0.00013698,2]
[334833659,1723606248230,-500.0,0.00013698,2]
[334833660,1723606248240,-3715.29,0.00013698,2]
[334833661,1723606248254,-539.26294848,0.00013698,2]
[334833662,1723606248263,-4675.48,0.00013698,2]
[334833663,1723606248273,-396.19159346,0.00013698,2]
[334833664,1723606248283,-500.0,0.00013698,2]
[334833665,1723606248292,-500.0,0.00013698,2]
[334833666,1723606248302,-500.0,0.00013698,2]
[334833667,1723606248312,-3923.08,0.00013698,2]
[334833668,1723606248322,-500.0,0.00013698,2]
[334833669,1723606248334,-3224.78,0.00013698,2]
[334833670,1723606248344,-4295.2,0.00013698,2]
[334833671,1723606248354,-203.73499794,0.00013698,2]
[334833672,1723606248364,-825.04,0.00013698,2]
[334833673,1723606248376,-1259.06,0.00013698,2]
[334833674,1723606248385,-500.0,0.00013698,2]
[334833675,1723606248395,-500.0,0.00013698,2]
[334833676,1723606248405,-500.0,0.00013698,2]
[334833677,1723606248414,-1723.66,0.00013698,2]
[334833678,1723606248425,-2684.08,0.00013698,2]
[334833679,1723606248434,-3159.18,0.00013698,2]
[334833680,1723606248444,-4205.68,0.00013698,2]
[334833681,1723606248453,-500.0,0.00013698,2]
[334833682,1723606248464,-500.0,0.00013698,2]
[334833683,1723606248473,-500.0,0.00013698,2]
[334833684,1723606248483,-12670.39,0.00013698,2]
[334833685,1723606248492,-1451.8,0.00013698,2]
[334833686,1723606248502,-500.0,0.00013698,2]
[334833687,1723606248512,-944.25,0.00013698,2]
[334833688,1723606248522,-5210.36,0.00013698,2]
[334833689,1723606248532,-500.0,0.00013698,2]
[334833690,1723606248542,-500.0,0.00013698,2]
[334833691,1723606248551,-2653.26,0.00013698,2]
[334833692,1723606248561,-1486.96,0.00013698,2]
[334833693,1723606248571,-2658.12,0.00013698,2]
[334833694,1723606248581,-500.0,0.00013698,2]
[334833695,1723606248591,-1068.96,0.00013698,2]
[334833696,1723606248601,-1036.59,0.00013698,2]
[334833697,1723606248612,-536.54,0.00013698,2]
[334833698,1723606248622,-3034.55,0.00013698,2]
[334833699,1723606248632,-666.32,0.00013698,2]
[334833700,1723606248644,-3671.67,0.00013698,2]
[334833701,1723606248654,-3682.9,0.00013698,2]
[334833702,1723606248665,-1514.82,0.00013698,2]
[334833703,1723606248675,-500.0,0.00013698,2]
[334833704,1723606248685,-1352.59,0.00013698,2]
[334833705,1723606248695,-817.61,0.00013698,2]
[334833706,1723606248705,-3930.45,0.00013698,2]
[334833707,1723606248715,-500.0,0.00013698,2]
[334833708,1723606248725,-1099.67,0.00013698,2]
[334833709,1723606248737,-3001.63,0.00013698,2]
[334833710,1723606248749,-792.89,0.00013698,2]
[334833711,1723606248760,-1292.34,0.00013698,2]
[334833712,1723606248772,-1091.54,0.00013698,2]
[334833713,1723606248783,-4457.11,0.00013698,2]
[334833714,1723606248793,-500.0,0.00013698,2]
[334833715,1723606248803,-549.36,0.00013698,2]
[334833716,1723606248813,-896.44,0.00013698,2]
[334833717,1723606248823,-1018.26,0.00013698,2]
[334833718,1723606248840,-581.85,0.00013698,2]
[334833719,1723606248850,-2569.68,0.00013698,2]
[334833720,1723606248860,-500.0,0.00013698,2]
[334833721,1723606248870,-1376.93,0.00013698,2]
[334833722,1723606248879,-500.0,0.00013698,2]
[334833723,1723606248889,-571.51,0.00013698,2]
[334833724,1723606248899,-3140.85,0.00013698,2]
[334833725,1723606248908,-3734.95,0.00013698,2]
[334833726,1723606248918,-500.0,0.00013698,2]
[334833727,1723606248928,-3302.41,0.00013698,2]
[334833728,1723606248938,-500.0,0.00013698,2]
[334833729,1723606248948,-500.0,0.00013698,2]
[334833730,1723606248957,-670.67,0.00013698,2]
[334833731,1723606248967,-2638.69,0.00013698,2]
[334833732,1723606248977,-2369.05,0.00013698,2]
[334833733,1723606248987,-500.0,0.00013698,2]
[334833734,1723606248996,-500.0,0.00013698,2]
[334833735,1723606249006,-2001.83,0.00013698,2]
[334833736,1723606249016,-13946.1,0.00013698,2]
[334833737,1723606249026,-596.04918968,0.00013698,2]
[334833738,1723606249036,-500.0,0.00013698,2]
[334833739,1723606249046,-500.0,0.00013698,2]
[334833740,1723606249056,-2345.36,0.00013698,2]
[334833741,1723606249066,-500.0,0.00013698,2]
[334833742,1723606249076,-572.16,0.00013698,2]
[334833743,1723606249087,-567.9,0.00013698,2]
[334833744,1723606249175,-500.0,0.00013698,2]
[334833745,1723606249185,-2422.96,0.00013698,2]
[334833746,1723606249195,-1927.98,0.00013698,2]
[334833747,1723606249205,-500.0,0.00013698,2]
[334833748,1723606249214,-7987.29,0.00013698,2]
[334833749,1723606249224,-500.0,0.00013698,2]
[334833750,1723606249234,-400.0,0.00013698,2]
[334833751,1723606249243,-901.36,0.00013698,2]
[334833752,1723606249252,-806.26,0.00013698,2]
[334833753,1723606249261,-1375.7,0.00013698,2]
[334833754,1723606249271,-500.0,0.00013698,2]
[334833755,1723606249280,-897.37,0.00013698,2]
[334833756,1723606249289,-2356.28,0.00013698,2]
[334833757,1723606249299,-500.0,0.00013698,2]
[334833758,1723606249308,-4803.25,0.00013698,2]
[334833759,1723606249317,-923.75,0.00013698,2]
[334833760,1723606249326,-534.95,0.00013698,2]
[334833761,1723606249337,-500.0,0.00013698,2]
[334833762,1723606249346,-663.0,0.00013698,2]